fUSD/lending_fUSD_20251211
["ID","MTS","AMOUNT","RATE_DAILY","PERIOD"]
[398269988,1765487442851,-302.34110853,0.0003761,2]
[398269989,1765487442861,-300.0,0.0003761,2]
[398269990,1765487442871,-478.05444251,0.0003761,2]
[398269991,1765487442885,-303.15225682,0.0003761,2]
[398269992,1765487442895,-407.90462974,0.0003761,2]
[398269993,1765487442905,-302.34110853,0.0003761,2]
[398269994,1765487442915,-400.90018448,0.0003761,2]
[398269995,1765487442927,-303.15225682,0.0003761,2]
[398269996,1765487442938,-302.34110853,0.0003761,2]
[398269997,1765487442948,-303.15225682,0.0003761,2]
[398269998,1765487442958,-302.34110853,0.0003761,2]
[398269999,1765487442969,-487.30083455,0.0003761,2]
[398270000,1765487442979,-512.64107232,0.0003761,2]
[398270001,1765487442989,-303.15225682,0.0003761,2]
[398270002,1765487442999,-303.15225682,0.0003761,2]
[398270003,1765487443009,-150.0,0.00037667,7]
[398270004,1765487443021,-150.0,0.00037684,7]
[398270005,1765487443031,-934.70843282,0.000377,2]
[398270006,1765487443042,-150.0,0.00037714,7]
[398270007,1765487443052,-150.0,0.00037714,7]
[398270008,1765487443063,-181.39,0.00037808,2]
[398270009,1765487443073,-340.42,0.00037808,2]
[398270010,1765487443083,-150.0,0.00037818,7]
[398270011,1765487443093,-150.0,0.00037867,7]
[398270012,1765487443103,-150.0,0.00037895,7]
[398270013,1765487443112,-150.0,0.00037905,7]
[398270014,1765487443122,-329.5,0.00038,2]
[398270015,1765487443136,-1670.51,0.00038,2]
[398270016,1765487443146,-150.0,0.00038,7]
[398270017,1765487443156,-150.0,0.00038,7]
[398270018,1765487443167,-150.0,0.00038,7]
[398270019,1765487443177,-150.0,0.00038095,7]
[398270020,1765487443187,-480.8162296,0.000381,30]
[398270021,1765487443197,-150.0,0.00038105,7]
[398270022,1765487443206,-150.0,0.00038133,7]
[398270023,1765487443218,-150.0,0.00038182,7]
[398270024,1765487443228,-151.0,0.00038219,31]
[398270025,1765487443238,-151.0,0.00038219,31]
[398270026,1765487443248,-396.079309,0.00038219,31]
[398270027,1765487443258,-151.0,0.00038219,31]
[398270028,1765487443268,-396.079309,0.00038219,31]
[398270029,1765487443278,-396.079309,0.00038219,31]
[398270030,1765487443287,-396.079309,0.00038219,31]
[398270031,1765487443297,-156.180316,0.00038219,31]
[398270032,1765487443307,-151.0,0.00038219,31]
[398270033,1765487443316,-151.0,0.00038219,31]
[398270034,1765487443326,-151.0,0.00038219,31]
[398270035,1765487443335,-156.857615,0.00038219,31]
[398270036,1765487443345,-151.0,0.00038219,31]
[398270037,1765487443355,-151.0,0.00038219,31]
[398270038,1765487443364,-151.0,0.00038219,31]
[398270039,1765487443374,-151.0,0.00038219,31]
[398270040,1765487443386,-151.0,0.00038219,31]
[398270041,1765487443397,-960.64,0.00038219,2]
[398270042,1765487443407,-480.43,0.00038219,2]
[398270043,1765487443417,-703.56,0.00038219,2]
[398270044,1765487443427,-703.56,0.00038219,2]
[398270045,1765487443437,-480.43,0.00038219,2]
[398270046,1765487443447,-480.43,0.00038219,2]
[398270047,1765487443458,-703.56,0.00038219,2]
[398270048,1765487443469,-703.56,0.00038219,2]
[398270049,1765487443479,-703.56,0.00038219,2]
[398270050,1765487443490,-703.56,0.00038219,2]
[398270051,1765487443502,-703.56,0.00038219,2]
[398270052,1765487443512,-934.70843282,0.00038233,2]
[398270053,1765487443522,-150.0,0.00038286,7]
[398270054,1765487443532,-150.0,0.00038286,7]
[398270055,1765487443545,-150.0,0.00038316,7]
[398270056,1765487443556,-150.0,0.00038333,7]
[398270057,1765487443567,-201.77,0.00038347,2]
[398270058,1765487443577,-151.0,0.00038356,56]
[398270059,1765487443588,-151.0,0.00038356,56]
[398270060,1765487443599,-151.0,0.00038356,56]
[398270062,1765487443608,-600.0,0.00038356,30]
[398270064,1765487443618,-151.0,0.0003837,14]
[398270066,1765487443630,-500.0,0.00038373,5]
[398270067,1765487443639,-500.0,0.00038373,5]
[398270068,1765487443649,-500.0,0.00038373,5]
[398270069,1765487443659,-500.0,0.00038373,5]
[398270070,1765487443668,-500.0,0.00038373,5]
[398270072,1765487443678,-162.00045173,0.00038373,5]
[398270073,1765487443688,-160.32027915,0.00038373,5]
[398270074,1765487443697,-500.0,0.00038373,5]
[398270075,1765487443707,-517.9462685,0.00038373,5]
[398270076,1765487443717,-500.0,0.00038373,5]
[398270077,1765487443727,-500.0,0.00038373,5]
[398270078,1765487443737,-500.0,0.00038373,5]
[398270079,1765487443747,-500.0,0.00038373,5]
[398270080,1765487443757,-500.0,0.00038373,5]
[398270081,1765487443768,-400.09732681,0.00038373,5]
[398270082,1765487443778,-330.17212398,0.00038373,5]
[398270083,1765487443788,-500.0,0.00038373,5]
[398270084,1765487443798,-500.0,0.00038373,5]
[398270085,1765487443809,-500.0,0.00038373,5]
[398270086,1765487443818,-500.0,0.00038373,5]
[398270087,1765487443829,-500.0,0.00038373,5]
[398270088,1765487443839,-161.78500937,0.00038373,5]
[398270089,1765487443850,-500.0,0.00038373,5]
[398270090,1765487443860,-503.38409325,0.00038373,5]
[398270091,1765487443870,-500.0,0.00038373,5]
[398270092,1765487443884,-150.0,0.00038373,5]
[398270093,1765487443894,-500.7211152,0.00038373,5]
[398270094,1765487443905,-500.0,0.00038373,5]
[398270095,1765487443916,-206.28632054,0.00038373,5]
[398270096,1765487443926,-500.0,0.00038373,5]
[398270097,1765487443936,-500.0,0.00038373,5]
[398270098,1765487443946,-500.0,0.00038373,5]
[398270099,1765487443957,-555.00834675,0.00038373,5]
[398270100,1765487443967,-500.0,0.00038373,5]
[398270101,1765487443977,-500.0,0.00038373,5]
[398270102,1765487443987,-500.0,0.00038373,5]
[398270103,1765487443997,-500.65761442,0.00038373,5]
[398270104,1765487444007,-508.65754363,0.00038373,5]
[398270105,1765487444017,-500.0,0.00038373,5]
[398270106,1765487444026,-500.0,0.00038373,5]
[398270107,1765487444036,-500.37685965,0.00038373,5]
[398270108,1765487444046,-500.0,0.00038373,5]
[398270109,1765487444055,-167.52959839,0.00038373,5]
[398270110,1765487444066,-500.0,0.00038373,5]
[398270111,1765487444076,-334.01700762,0.00038373,5]
[398270112,1765487444086,-500.70781313,0.00038373,5]
[398270113,1765487444096,-500.0,0.00038373,5]
[398270114,1765487444106,-162.1105008,0.00038373,2]
[398270115,1765487444116,-500.0,0.00038373,5]
[398270116,1765487444126,-156.29351951,0.00038373,5]
[398270117,1765487444137,-159.84440919,0.00038373,5]
[398270118,1765487444147,-505.42157002,0.00038373,5]
[398270119,1765487444157,-500.0,0.00038373,5]
[398270120,1765487444166,-282.14358806,0.00038373,5]
[398270121,1765487444176,-500.0,0.00038373,5]
[398270122,1765487444186,-500.0,0.00038373,5]
[398270123,1765487444196,-500.0,0.00038373,5]
[398270124,1765487444207,-500.0,0.00038373,5]
[398270125,1765487444217,-166.65090204,0.00038373,5]
[398270126,1765487444227,-508.35572446,0.00038373,5]
[398270127,1765487444236,-500.0,0.00038373,5]
[398270128,1765487444247,-500.0,0.00038373,5]
[398270129,1765487444256,-500.0,0.00038373,5]
[398270130,1765487444266,-200.0,0.00038373,5]
[398270131,1765487444275,-620.03628553,0.00038373,5]
[398270132,1765487444285,-500.0,0.00038373,5]
[398270133,1765487444295,-161.36495475,0.00038373,2]
[398270134,1765487444305,-500.0,0.00038373,5]
[398270135,1765487444314,-160.82894944,0.00038373,2]
[398270136,1765487444324,-500.0,0.00038373,5]
[398270137,1765487444333,-219.92273035,0.00038373,5]
[398270138,1765487444342,-500.0,0.00038373,5]
[398270139,1765487444351,-500.0,0.00038373,5]
[398270140,1765487444361,-165.29202528,0.00038373,5]
[398270141,1765487444371,-500.0,0.00038373,5]
[398270142,1765487444381,-500.0,0.00038373,5]
[398270143,1765487444391,-511.65520105,0.00038373,5]
[398270144,1765487444401,-500.0,0.00038373,5]
[398270145,1765487444411,-328.6558428,0.00038373,5]
[398270146,1765487444421,-500.0,0.00038373,5]
[398270147,1765487444431,-373.7998759,0.00038373,5]
[398270148,1765487444440,-500.0,0.00038373,5]
[398270149,1765487444450,-500.65733064,0.00038373,5]
[398270150,1765487444460,-500.0,0.00038373,5]
[398270151,1765487444473,-529.15298416,0.00038373,5]
[398270152,1765487444482,-500.0,0.00038373,5]
[398270153,1765487444492,-164.5664927,0.00038373,5]
[398270154,1765487444502,-168.30485891,0.00038373,5]
[398270155,1765487444512,-500.0,0.00038373,5]
[398270156,1765487444522,-150.0,0.000384,7]
[398270157,1765487444531,-150.0,0.000384,7]
[398270158,1765487444541,-150.0,0.00038476,7]
[398270159,1765487444551,-86213.16687521,0.000385,2]
[398270160,1765487444561,-10000.0,0.000385,120]
[398270161,1765487444570,-151.0,0.000385,30]
[398270162,1765487444580,-189.259424,0.000385,120]
[398270163,1765487444590,-151.0,0.000385,120]
[398270164,1765487444599,-151.0,0.000385,2]
[398270165,1765487444609,-151.0,0.000385,2]
[398270166,1765487444619,-151.0,0.000385,2]
[398270167,1765487444629,-151.0,0.000385,30]
[398270168,1765487444639,-151.0,0.000385,30]
[398270169,1765487444649,-151.0,0.000385,30]
[398270170,1765487444659,-151.0,0.000385,120]
[398270171,1765487444668,-151.0,0.000385,120]
[398270172,1765487444678,-174.044111,0.000385,120]
[398270173,1765487444687,-151.0,0.000385,120]
[398270174,1765487444696,-151.0,0.000385,120]
[398270175,1765487444706,-151.0,0.000385,120]
[398270176,1765487444715,-151.0,0.000385,120]
[398270177,1765487444725,-111.72213229,0.000385,120]
[398270178,1765487444741,-39.27786771,0.000385,120]
[398270179,1765487444750,-151.0,0.000385,120]
[398270180,1765487444760,-151.0,0.000385,120]
[398270182,1765487444769,-151.0,0.000385,120]
[398270183,1765487444779,-216.966414,0.000385,120]
[398270184,1765487444789,-216.966414,0.000385,120]
[398270185,1765487444799,-216.966414,0.000385,120]
[398270186,1765487444811,-216.966414,0.000385,120]
[398270187,1765487444822,-151.0,0.000385,120]
[398270188,1765487444832,-151.0,0.000385,120]
[398270189,1765487444842,-151.0,0.000385,120]
[398270190,1765487444853,-396.079309,0.000385,120]
[398270191,1765487444863,-396.079309,0.000385,120]
[398270192,1765487444874,-396.079309,0.000385,120]
[398270193,1765487444885,-396.079309,0.000385,120]
[398270194,1765487444895,-151.0,0.000385,120]
[398270195,1765487444905,-151.0,0.000385,56]
[398270196,1765487444916,-151.0,0.000385,120]
[398270197,1765487444927,-151.0,0.000385,120]
[398270198,1765487444936,-151.0,0.000385,56]
[398270199,1765487444946,-151.0,0.000385,56]
[398270200,1765487444956,-151.0,0.000385,120]
[398270201,1765487444966,-151.0,0.000385,120]
[398270202,1765487444976,-151.0,0.000385,120]
[398270203,1765487444986,-151.0,0.000385,120]
[398270204,1765487444996,-151.0,0.000385,120]
[398270205,1765487445006,-150.0,0.00038526,7]
[398270206,1765487445017,-150.0,0.00038545,7]
[398270207,1765487445026,-170.32,0.0003863,2]
[398270208,1765487445036,-1105.44,0.0003863,2]
[398270209,1765487445193,-170.32,0.0003863,2]
[398270210,1765487445205,-552.86,0.0003863,2]
[398270211,1765487445215,-170.32,0.0003863,2]
[398270212,1765487445225,-552.86,0.0003863,2]
[398270213,1765487445235,-178.13,0.0003863,2]
[398270214,1765487445245,-300.0,0.0003863,2]
[398270215,1765487445255,-1216.3,0.0003863,2]
[398270216,1765487445264,-150.0,0.0003863,2]
[398270217,1765487445274,-150.0,0.0003863,2]
[398270218,1765487445283,-463.81,0.0003863,2]
[398270219,1765487445296,-552.5,0.0003863,2]
[398270220,1765487445308,-1216.3,0.0003863,2]
[398270221,1765487445319,-178.13,0.0003863,2]
[398270222,1765487445328,-170.32,0.0003863,2]
[398270223,1765487445337,-463.81,0.0003863,2]
[398270224,1765487445347,-150.0,0.0003863,2]
[398270225,1765487445357,-552.86,0.0003863,2]
[398270226,1765487445366,-170.32,0.0003863,2]
[398270227,1765487445375,-552.86,0.0003863,2]
[398270228,1765487445387,-178.13,0.0003863,2]
[398270229,1765487445396,-1216.3,0.0003863,2]
[398270230,1765487445407,-170.32,0.0003863,2]
[398270231,1765487445417,-150.0,0.0003863,2]
[398270232,1765487445426,-463.81,0.0003863,2]
[398270233,1765487445436,-1091.22,0.0003863,2]
[398270234,1765487445446,-170.32,0.0003863,2]
[398270235,1765487445457,-178.13,0.0003863,2]
[398270236,1765487445468,-552.86,0.0003863,2]
[398270237,1765487445477,-150.0,0.0003863,2]
[398270238,1765487445487,-178.13,0.0003863,2]
[398270239,1765487445496,-552.86,0.0003863,2]
[398270240,1765487445506,-170.32,0.0003863,2]
[398270241,1765487445515,-926.65,0.0003863,2]
[398270242,1765487445525,-150.0,0.0003863,2]
[398270243,1765487445537,-552.86,0.0003863,2]
[398270244,1765487445547,-178.13,0.0003863,2]
[398270245,1765487445556,-170.12,0.0003863,2]
[398270246,1765487445566,-304.91,0.0003863,2]
[398270247,1765487445575,-434.61,0.0003863,2]
[398270248,1765487445585,-150.0,0.0003863,2]
[398270249,1765487445594,-178.13,0.0003863,2]
[398270250,1765487445603,-177.79,0.0003863,2]
[398270251,1765487445613,-150.0,0.00038667,7]
[398270252,1765487445623,-150.0,0.00038667,7]
[398270253,1765487445633,-150.0,0.00038667,7]
[398270254,1765487445643,-150.0,0.00038667,7]
[398270255,1765487445652,-152.0,0.00038726,5]
[398270256,1765487445663,-150.0,0.00038737,7]
[398270257,1765487445672,-934.70843282,0.00038767,2]
[398270258,1765487445682,-150.0,0.000388,7]
[398270259,1765487445691,-150.0,0.00038857,7]
[398270260,1765487445701,-150.0,0.00038857,7]
[398270261,1765487445710,-150.0,0.00038909,7]
[398270262,1765487445719,-5969.91595197,0.00038911,3]
[398270263,1765487445729,-1000.0,0.00038921,5]
[398270264,1765487445738,-706.20411055,0.00038921,5]
[398270265,1765487445748,-1000.0,0.00038921,5]
[398270266,1765487445757,-1000.0,0.00038921,5]
[398270267,1765487445767,-500.0,0.00038921,5]
[398270268,1765487445777,-167.08127041,0.00038921,5]
[398270269,1765487445786,-1000.0,0.00038921,5]
[398270270,1765487445796,-1082.87378148,0.00038921,5]
[398270271,1765487445806,-304.6147564,0.00038921,5]
[398270272,1765487445816,-782.11309411,0.00038921,5]
[398270273,1765487445826,-1000.0,0.00038921,5]
[398270274,1765487445836,-1000.0,0.00038921,5]
[398270275,1765487445845,-1008.78641524,0.00038921,5]
[398270276,1765487445855,-1082.78041603,0.00038921,5]
[398270277,1765487445865,-1000.0,0.00038921,5]
[398270278,1765487445875,-1000.0,0.00038921,5]
[398270279,1765487445886,-1000.0,0.00038921,5]
[398270280,1765487445895,-150.0,0.00038921,5]
[398270281,1765487445905,-834.87790895,0.00038921,5]
[398270282,1765487445915,-1000.0,0.00038921,5]
[398270283,1765487445925,-1000.0,0.00038921,5]
[398270284,1765487445935,-1000.0,0.00038921,5]
[398270285,1765487445945,-1000.0,0.00038921,5]
[398270286,1765487445954,-501.259204,0.00038921,5]
[398270287,1765487445965,-176.24525942,0.00038921,5]
[398270288,1765487445975,-368.98204169,0.00038921,5]
[398270289,1765487445985,-669.69750416,0.00038921,5]
[398270290,1765487445995,-466.74902463,0.00038921,5]
[398270291,1765487446005,-1000.0,0.00038921,5]
[398270292,1765487446015,-1000.0,0.00038921,5]
[398270293,1765487446025,-1000.0,0.00038921,5]
[398270294,1765487446035,-492.89030154,0.00038921,5]
[398270295,1765487446045,-1000.0,0.00038921,5]
[398270296,1765487446055,-864.93219597,0.00038921,5]
[398270297,1765487446065,-1000.0,0.00038921,5]
[398270298,1765487446075,-1000.0,0.00038921,5]
[398270299,1765487446085,-1000.0,0.00038921,5]
[398270300,1765487446095,-550.25383571,0.00038921,5]
[398270301,1765487446105,-1000.0,0.00038921,5]
[398270302,1765487446115,-1000.0,0.00038921,5]
[398270303,1765487446136,-1000.0,0.00038921,5]
[398270304,1765487446146,-1000.0,0.00038921,5]
[398270305,1765487446156,-1000.0,0.00038921,5]
[398270306,1765487446166,-1000.0,0.00038921,5]
[398270307,1765487446176,-1000.0,0.00038921,5]
[398270308,1765487446185,-1000.0,0.00038921,5]
[398270309,1765487446195,-1000.0,0.00038921,5]
[398270310,1765487446204,-1000.0,0.00038921,5]
[398270311,1765487446214,-1000.0,0.00038921,5]
[398270312,1765487446223,-1000.0,0.00038921,5]
[398270313,1765487446233,-1000.0,0.00038921,5]
[398270314,1765487446243,-150.0,0.00038933,7]
[398270315,1765487446254,-150.0,0.00038947,7]
[398270316,1765487446264,-150.0,0.00039,7]
[398270317,1765487446274,-200.0,0.00039002,2]
[398270318,1765487446289,-200.0,0.00039002,2]
[398270319,1765487446299,-200.0,0.00039002,2]
[398270320,1765487446308,-200.0,0.00039002,2]
[398270321,1765487446318,-200.0,0.00039002,2]
[398270322,1765487446329,-200.0,0.00039002,2]
[398270323,1765487446339,-200.0,0.00039002,2]
[398270324,1765487446349,-200.0,0.00039002,2]
[398270325,1765487446358,-200.0,0.00039002,2]
[398270327,1765487446368,-200.0,0.00039002,2]
[398270328,1765487446377,-200.0,0.00039002,2]
[398270329,1765487446387,-200.0,0.00039002,2]
[398270330,1765487446396,-200.0,0.00039002,2]
[398270331,1765487446406,-200.0,0.00039002,2]
[398270332,1765487446415,-202.0,0.00039002,2]
[398270333,1765487446424,-1989.97198399,0.00039021,3]
[398270334,1765487446434,-1989.97198399,0.00039031,3]
[398270335,1765487446444,-500.0,0.0003904,30]
[398270336,1765487446454,-5711.966436,0.00039041,120]
[398270337,1765487446467,-5711.966436,0.00039041,120]
[398270338,1765487446476,-5711.966436,0.00039041,120]
[398270339,1765487446485,-5711.966436,0.00039041,120]
[398270340,1765487446495,-150.0,0.00039048,7]
[398270341,1765487446504,-400.0,0.00039058,5]
[398270342,1765487446514,-1989.97198399,0.0003909,3]
[398270343,1765487446523,-5412.63,0.000391,14]
[398270344,1765487446533,-150.0,0.00039158,7]
[398270345,1765487446545,-446.01,0.00039162,120]
[398270346,1765487446554,-1989.97198399,0.00039168,3]
[398270347,1765487446564,-151.0,0.00039178,120]
[398270348,1765487446574,-151.0,0.00039178,120]
[398270349,1765487446583,-151.0,0.00039178,120]
[398270350,1765487446593,-151.0,0.00039178,120]
[398270351,1765487446603,-151.0,0.00039178,120]
[398270352,1765487446612,-151.0,0.00039178,120]
[398270353,1765487446622,-151.0,0.00039178,120]
[398270354,1765487446633,-216.966414,0.00039178,120]
[398270355,1765487446643,-216.966414,0.00039178,120]
[398270356,1765487446652,-216.966414,0.00039178,120]
[398270357,1765487446662,-216.966414,0.00039178,120]
[398270358,1765487446671,-151.0,0.00039178,120]
[398270359,1765487446681,-151.0,0.00039178,120]
[398270360,1765487446690,-5711.966436,0.00039178,120]
[398270361,1765487446699,-5711.966436,0.00039178,120]
[398270362,1765487446709,-5711.966436,0.00039178,120]
[398270363,1765487446718,-5711.966436,0.00039178,120]
[398270364,1765487446728,-960.86,0.00039178,2]
[398270365,1765487446738,-703.56,0.00039178,2]
[398270366,1765487446747,-703.56,0.00039178,2]
[398270367,1765487446757,-703.56,0.00039178,2]
[398270368,1765487446766,-1286.16,0.00039178,2]
[398270369,1765487446776,-150.0,0.000392,7]
[398270370,1765487446786,-150.0,0.000392,7]
[398270371,1765487446796,-150.0,0.00039238,7]
[398270372,1765487446805,-187.0,0.00039267,90]
[398270373,1765487446815,-2000.0,0.00039271,3]
[398270374,1765487446825,-150.0,0.00039273,7]
[398270375,1765487446835,-1989.97198399,0.0003929,3]
[398270376,1765487446845,-377.02374844,0.000393,30]
[398270377,1765487446855,-934.70843282,0.000393,2]
[398270378,1765487446864,-150.0,0.00039333,7]
[398270379,1765487446874,-154.93216666,0.00039367,28]
[398270380,1765487446886,-151.0,0.00039368,120]
[398270381,1765487446895,-396.079309,0.00039368,120]
[398270382,1765487446905,-396.079309,0.00039368,120]
[398270383,1765487446914,-396.079309,0.00039368,120]
[398270384,1765487446924,-396.079309,0.00039368,120]
[398270385,1765487446934,-151.0,0.00039368,120]
[398270386,1765487446944,-151.0,0.00039368,56]
[398270387,1765487446954,-151.0,0.00039368,120]
[398270388,1765487446963,-188.022866,0.00039368,120]
[398270389,1765487446974,-151.0,0.00039368,56]
[398270390,1765487446984,-151.0,0.00039368,56]
[398270391,1765487446994,-151.0,0.00039368,120]
[398270392,1765487447004,-203.488728,0.00039368,120]
[398270393,1765487447014,-151.0,0.00039368,120]
[398270394,1765487447023,-151.0,0.00039368,120]
[398270395,1765487447033,-151.0,0.00039368,120]
[398270396,1765487447043,-150.0,0.00039368,7]
[398270397,1765487447052,-4028.01448625,0.000394,2]
[398270398,1765487447062,-206.12578999,0.000394,2]
[398270399,1765487447072,-150.0,0.00039429,7]
[398270400,1765487447081,-150.0,0.00039429,7]
[398270401,1765487447091,-151.0,0.00039442,120]
[398270402,1765487447100,-151.0,0.00039442,120]
[398270403,1765487447110,-1989.97198399,0.00039442,3]
[398270404,1765487447119,-1989.97198399,0.00039449,3]
[398270405,1765487447129,-1215.91,0.00039452,2]
[398270406,1765487447139,-150.0,0.00039452,2]
[398270407,1765487447148,-178.04,0.00039452,2]
[398270408,1765487447157,-150.0,0.00039452,2]
[398270409,1765487447167,-150.0,0.00039452,2]
[398270410,1765487447176,-300.0,0.00039452,2]
[398270411,1765487447186,-1214.44,0.00039452,2]
[398270412,1765487447195,-195.5,0.00039452,2]
[398270413,1765487447204,-341.13,0.00039452,2]
[398270414,1765487447214,-356.26,0.00039452,2]
[398270415,1765487447223,-150.0,0.00039452,2]
[398270416,1765487447233,-340.64,0.00039452,2]
[398270417,1765487447243,-150.0,0.00039452,2]
[398270418,1765487447252,-3979.94396798,0.00039458,3]
[398270419,1765487447262,-150.0,0.00039467,7]
[398270420,1765487447271,-151.0,0.00039468,30]
[398270421,1765487447281,-255.673843,0.00039468,120]
[398270422,1765487447290,-151.0,0.00039468,2]
[398270423,1765487447299,-151.0,0.00039468,2]
[398270424,1765487447308,-171.459316,0.00039468,2]
[398270425,1765487447317,-151.0,0.00039468,30]
[398270426,1765487447327,-151.0,0.00039468,30]
[398270427,1765487447336,-288.059023,0.00039468,30]
[398270428,1765487447346,-1500.0,0.00039468,5]
[398270429,1765487447355,-1500.0,0.00039468,5]
[398270430,1765487447365,-1500.0,0.00039468,5]
[398270431,1765487447374,-1500.0,0.00039468,5]
[398270432,1765487447384,-1500.0,0.00039468,5]
[398270433,1765487447394,-1500.0,0.00039468,5]
[398270434,1765487447405,-500.0,0.00039468,5]
[398270435,1765487447414,-1500.0,0.00039468,5]
[398270436,1765487447424,-500.40607272,0.00039468,5]
[398270437,1765487447434,-218.56524269,0.00039468,5]
[398270438,1765487447443,-1500.0,0.00039468,5]
[398270439,1765487447453,-1500.0,0.00039468,5]
[398270440,1765487447462,-1500.0,0.00039468,5]
[398270441,1765487447475,-1500.0,0.00039468,5]
[398270442,1765487447484,-1472.55268445,0.00039468,5]
[398270443,1765487447494,-1000.0,0.00039468,5]
[398270444,1765487447505,-1000.99617809,0.00039468,5]
[398270445,1765487447515,-1500.0,0.00039468,5]
[398270446,1765487447525,-164.34900188,0.00039468,5]
[398270447,1765487447534,-1500.0,0.00039468,5]
[398270448,1765487447544,-501.63768865,0.00039468,5]
[398270449,1765487447554,-1500.0,0.00039468,5]
[398270450,1765487447563,-500.0,0.00039468,5]
[398270451,1765487447573,-1003.98642441,0.00039468,5]
[398270452,1765487447583,-1500.0,0.00039468,5]
[398270453,1765487447592,-1500.82569188,0.00039468,5]
[398270454,1765487447602,-1500.0,0.00039468,5]
[398270455,1765487447611,-1500.0,0.00039468,5]
[398270456,1765487447678,-1000.0,0.00039468,5]
[398270457,1765487447687,-1010.26853777,0.00039468,5]
[398270458,1765487447696,-769.09982073,0.00039468,5]
[398270459,1765487447706,-1500.0,0.00039468,5]
[398270460,1765487447715,-855.64089652,0.0003947,2]
[398270461,1765487447724,-711.04806044,0.0003947,2]
[398270462,1765487447734,-1000.0,0.00039477,7]
[398270463,1765487447744,-1989.97198399,0.00039479,3]
[398270464,1765487447753,-11939.8319039,0.0003948,3]
[398270465,1765487447763,-151.0,0.0003949,120]
[398270466,1765487447772,-151.0,0.0003949,120]
[398270467,1765487447782,-151.0,0.0003949,120]
[398270468,1765487447791,-151.0,0.0003949,120]
[398270469,1765487447800,-195.08374,0.0003949,120]
[398270470,1765487447810,-151.0,0.0003949,120]
[398270471,1765487447820,-151.0,0.0003949,120]
[398270472,1765487447830,-216.966414,0.0003949,120]
[398270473,1765487447840,-216.966414,0.0003949,120]
[398270474,1765487447849,-216.966414,0.0003949,120]
[398270475,1765487447859,-216.966414,0.0003949,120]
[398270476,1765487447868,-17909.7478559,0.0003949,3]
[398270477,1765487447878,-242.057416,0.0003949,120]
[398270478,1765487447887,-5711.966436,0.0003949,120]
[398270479,1765487447897,-5711.966436,0.0003949,120]
[398270480,1765487447907,-5711.966436,0.0003949,120]
[398270481,1765487447917,-5711.966436,0.0003949,120]
[398270482,1765487447927,-500.0,0.00039499,30]
[398270483,1765487447938,-29439.76807662,0.000395,2]
[398270484,1765487448216,-926.45579169,0.000395,2]
[398270485,1765487448227,-452.75961592,0.000395,2]
[398270486,1765487448239,-387.14357678,0.000395,2]
[398270487,1765487448250,-7202.2552285,0.000395,2]
[398270488,1765487448261,-2713.02170041,0.000395,2]
[398270489,1765487448273,-422.89223244,0.000395,2]
[398270490,1765487448288,-151.0,0.00038219,31]
[398270491,1765487448298,-1416.128,0.000395,2]
[398270492,1765487448310,-13234.25867916,0.000395,2]
[398270493,1765487448366,-4909.19431664,0.00027744,2]